fUST/lending_fUST_20250630
["ID","MTS","AMOUNT","RATE_DAILY","PERIOD"]
[368678755,1751292655845,-460.0,0.00020156,2]
[368678756,1751292655856,-610.8,0.00020156,2]
[368678757,1751292655865,-512.53,0.00020156,2]
[368678758,1751292655874,-1233.39,0.00020156,2]
[368678759,1751292655883,-460.0,0.00020156,2]
[368678760,1751292655893,-478.91,0.00020156,2]
[368678761,1751292655902,-460.0,0.00020156,2]
[368678762,1751292655911,-4803.33,0.00020156,2]
[368678763,1751292655922,-460.0,0.00020156,2]
[368678764,1751292655931,-460.0,0.00020156,2]
[368678765,1751292655941,-1190.0,0.00020156,2]
[368678766,1751292655950,-460.0,0.00020157,2]
[368678767,1751292655960,-1099.82,0.00020157,2]
[368678768,1751292655969,-460.0,0.00020157,2]
[368678769,1751292655979,-460.0,0.00020157,2]
[368678770,1751292655988,-624.33,0.00020157,2]
[368678771,1751292655998,-460.0,0.00020157,2]
[368678772,1751292656007,-460.0,0.00020157,2]
[368678773,1751292656017,-470.3,0.00020157,2]
[368678774,1751292656026,-4816.37,0.00020157,2]
[368678775,1751292656035,-1260.89,0.00020157,2]
[368678776,1751292656044,-485.39,0.00020157,2]
[368678777,1751292656054,-460.0,0.00020157,2]
[368678778,1751292656063,-460.0,0.00020175,2]
[368678779,1751292656072,-460.0,0.00020175,2]
[368678780,1751292656081,-1837.64,0.00020175,2]
[368678781,1751292656093,-460.0,0.00020175,2]
[368678782,1751292656104,-867.09,0.00020175,2]
[368678783,1751292656113,-460.0,0.00020175,2]
[368678784,1751292656123,-2598.35,0.00020175,2]
[368678785,1751292656132,-460.0,0.00020175,2]
[368678786,1751292656143,-466.47,0.00020175,2]
[368678787,1751292656155,-1001.31,0.00020175,2]
[368678788,1751292656164,-1950.63,0.00020175,2]
[368678789,1751292656174,-460.0,0.00020175,2]
[368678790,1751292656184,-460.0,0.00020175,2]
[368678791,1751292656193,-460.0,0.00020175,2]
[368678792,1751292656203,-5311.6,0.00020175,2]
[368678793,1751292656213,-1190.0,0.00020184,2]
[368678794,1751292656223,-295.479842,0.00020187,2]
[368678795,1751292656232,-151.0,0.000202,3]
[368678796,1751292656242,-1204.0,0.00020211,2]
[368678797,1751292656251,-4761.44927214,0.00020245,2]
[368678798,1751292656261,-151.0,0.00020245,2]
[368678799,1751292656270,-151.0,0.00020245,2]
[368678800,1751292656280,-460.0,0.00020256,2]
[368678801,1751292656289,-208.41,0.00020256,2]
[368678802,1751292656299,-460.0,0.00020256,2]
[368678803,1751292656308,-460.0,0.00020256,2]
[368678804,1751292656318,-460.0,0.00020256,2]
[368678805,1751292656327,-460.0,0.00020256,2]
[368678806,1751292656337,-460.0,0.00020256,2]
[368678807,1751292656347,-460.0,0.00020256,2]
[368678808,1751292656357,-508.48,0.00020256,2]
[368678809,1751292656366,-460.0,0.00020256,2]
[368678810,1751292656376,-574.1,0.00020256,2]
[368678811,1751292656385,-460.0,0.00020256,2]
[368678812,1751292656468,-460.0,0.00020256,2]
[368678813,1751292656483,-774.04,0.00020256,2]
[368678814,1751292656494,-527.72,0.00020256,2]
[368678815,1751292656505,-460.0,0.00020256,2]
[368678816,1751292656516,-460.0,0.00020256,2]
[368678817,1751292656527,-527.38,0.00020256,2]
[368678818,1751292656537,-460.0,0.00020256,2]
[368678819,1751292656547,-460.0,0.00020256,2]
[368678820,1751292656558,-215.0738,0.00020269,2]
[368678821,1751292656567,-966.0,0.00020314,2]
[368678822,1751292656578,-654.0,0.00020314,2]
[368678823,1751292656589,-1482.22408163,0.00020314,2]
[368678824,1751292656727,-668.77591837,0.00020314,2]
[368678825,1751292656738,-460.0,0.00020356,2]
[368678826,1751292656747,-481.66,0.00020356,2]
[368678827,1751292656757,-460.0,0.00020356,2]
[368678828,1751292656766,-460.0,0.00020356,2]
[368678829,1751292656776,-1125.71,0.00020356,2]
[368678830,1751292656786,-151.0,0.00020356,2]
[368678831,1751292656795,-151.0,0.00020356,2]
[368678832,1751292656806,-819.49,0.00020356,2]
[368678833,1751292656818,-213.693847,0.00020356,2]
[368678834,1751292656827,-213.693847,0.00020356,2]
[368678835,1751292656839,-711.35,0.00020356,2]
[368678836,1751292656853,-460.0,0.00020356,2]
[368678837,1751292656862,-1987.96,0.00020356,2]
[368678838,1751292656871,-151.0,0.00020356,2]
[368678839,1751292656881,-151.0,0.00020356,2]
[368678840,1751292656891,-404.35,0.00020356,2]
[368678841,1751292656902,-151.0,0.00020356,2]
[368678842,1751292656911,-151.0,0.00020356,2]
[368678843,1751292656921,-151.0,0.00020356,2]
[368678844,1751292656930,-151.0,0.00020356,2]
[368678845,1751292656940,-400.239292,0.00020356,2]
[368678846,1751292656950,-151.0,0.00020357,2]
[368678847,1751292656960,-829.15,0.00020357,2]
[368678848,1751292656969,-460.0,0.00020357,2]
[368678849,1751292656979,-151.0,0.00020357,2]
[368678850,1751292656988,-460.0,0.00020357,2]
[368678851,1751292656997,-2894.59887136,0.000204,3]
[368678852,1751292657011,-9674.5334468,0.000204,3]
[368678853,1751292657021,-847.41730813,0.000204,3]
[368678854,1751292657031,-160.0,0.000204,3]
[368678855,1751292657040,-213.84631524,0.000204,3]
[368678856,1751292657050,-460.0,0.00020401,2]
[368678857,1751292657060,-460.0,0.00020401,2]
[368678858,1751292657069,-4761.44927214,0.00020417,3]
[368678859,1751292657079,-151.0,0.00020425,2]
[368678860,1751292657090,-151.0,0.00020425,2]
[368678861,1751292657099,-460.0,0.00020429,2]
[368678862,1751292657110,-460.0,0.00020429,2]
[368678863,1751292657119,-3148.61,0.00020429,2]
[368678864,1751292657128,-833.89,0.00020429,2]
[368678865,1751292657138,-460.0,0.00020429,2]
[368678866,1751292657148,-3121.8,0.00020429,2]
[368678867,1751292657159,-460.0,0.00020429,2]
[368678868,1751292657169,-3574.5,0.00020429,2]
[368678869,1751292657179,-735.98,0.00020429,2]
[368678870,1751292657189,-489.67,0.00020429,2]
[368678871,1751292657198,-499.26,0.00020429,2]
[368678872,1751292657208,-267.94857808,0.00020429,2]
[368678873,1751292657217,-3308.14,0.00020429,2]
[368678874,1751292657227,-460.0,0.00020429,2]
[368678875,1751292657237,-460.0,0.00020429,2]
[368678876,1751292657246,-4178.41,0.00020429,2]
[368678877,1751292657256,-267.9336596,0.00020429,2]
[368678878,1751292657266,-407.76415195,0.00020429,2]
[368678879,1751292657275,-536.59,0.00020429,2]
[368678880,1751292657285,-507.75,0.00020429,2]
[368678881,1751292657294,-2247.91,0.00020429,2]
[368678882,1751292657304,-1889.22,0.00020429,2]
[368678883,1751292657314,-460.0,0.00020429,2]
[368678884,1751292657323,-460.0,0.00020429,2]
[368678885,1751292657333,-564.87,0.00020429,2]
[368678886,1751292657343,-151.0,0.0002043,2]
[368678887,1751292657355,-151.0,0.0002043,2]
[368678888,1751292657364,-500.0,0.0002043,2]
[368678889,1751292657374,-2144.16,0.0002043,2]
[368678890,1751292657383,-560.83,0.0002043,2]
[368678891,1751292657393,-494.44,0.0002043,2]
[368678892,1751292657402,-508.1,0.0002043,2]
[368678893,1751292657411,-460.0,0.0002043,2]
[368678894,1751292657421,-684.32,0.0002043,2]
[368678895,1751292657433,-460.0,0.0002043,2]
[368678896,1751292657442,-460.0,0.0002043,2]
[368678897,1751292657451,-610.8,0.0002043,2]
[368678898,1751292657460,-512.53,0.0002043,2]
[368678899,1751292657470,-1233.39,0.0002043,2]
[368678900,1751292657480,-460.0,0.0002043,2]
[368678901,1751292657491,-478.91,0.0002043,2]
[368678902,1751292657502,-460.0,0.0002043,2]
[368678903,1751292657511,-4803.33,0.0002043,2]
[368678904,1751292657521,-460.0,0.0002043,2]
[368678905,1751292657530,-460.0,0.0002043,2]
[368678906,1751292657539,-460.0,0.00020431,2]
[368678907,1751292657548,-1099.82,0.00020431,2]
[368678908,1751292657558,-460.0,0.00020431,2]
[368678909,1751292657567,-460.0,0.00020431,2]
[368678910,1751292657577,-624.33,0.00020431,2]
[368678911,1751292657587,-460.0,0.00020431,2]
[368678912,1751292657597,-470.3,0.00020431,2]
[368678913,1751292657607,-4816.37,0.00020431,2]
[368678914,1751292657617,-1260.89,0.00020431,2]
[368678915,1751292657627,-485.39,0.00020431,2]
[368678916,1751292657637,-460.0,0.00020431,2]
[368678917,1751292657647,-460.0,0.00020449,2]
[368678918,1751292657656,-151.0,0.00020449,2]
[368678919,1751292657665,-1837.64,0.00020449,2]
[368678920,1751292657674,-460.0,0.00020449,2]
[368678921,1751292657684,-867.09,0.00020449,2]
[368678922,1751292657694,-460.0,0.00020449,2]
[368678923,1751292657704,-2598.35,0.00020449,2]
[368678924,1751292657714,-460.0,0.00020449,2]
[368678925,1751292657726,-466.47,0.00020449,2]
[368678926,1751292657811,-1001.31,0.00020449,2]
[368678927,1751292657829,-1950.63,0.00020449,2]
[368678928,1751292657839,-460.0,0.00020449,2]
[368678929,1751292657849,-460.0,0.00020449,2]
[368678930,1751292657859,-460.0,0.00020449,2]
[368678931,1751292657869,-5311.6,0.00020449,2]
[368678932,1751292657879,-151.0,0.000205,3]
[368678933,1751292657888,-460.0,0.0002053,2]
[368678934,1751292657898,-257.61468776,0.0002053,2]
[368678935,1751292657909,-460.0,0.0002053,2]
[368678936,1751292657919,-460.0,0.0002053,2]
[368678937,1751292657928,-460.0,0.0002053,2]
[368678938,1751292657937,-460.0,0.0002053,2]
[368678939,1751292657947,-460.0,0.0002053,2]
[368678940,1751292657958,-508.48,0.0002053,2]
[368678941,1751292657967,-460.0,0.0002053,2]
[368678942,1751292657977,-574.1,0.0002053,2]
[368678943,1751292657987,-151.0,0.0002053,2]
[368678944,1751292657997,-274.12620256,0.0002053,2]
[368678945,1751292658009,-460.0,0.0002053,2]
[368678946,1751292658019,-774.04,0.0002053,2]
[368678947,1751292658028,-527.72,0.0002053,2]
[368678948,1751292658039,-460.0,0.0002053,2]
[368678949,1751292658050,-460.0,0.0002053,2]
[368678950,1751292658061,-527.38,0.0002053,2]
[368678951,1751292658072,-167.8195284,0.0002053,2]
[368678952,1751292658082,-460.0,0.0002053,2]
[368678953,1751292658092,-5000.0,0.00020544,2]
[368678954,1751292658103,-25000.0,0.00020544,2]
[368678955,1751292658113,-500.0,0.00020547,14]
[368678956,1751292658122,-200.0,0.0002055,2]
[368678957,1751292658132,-265.0,0.00020581,2]
[368678958,1751292658141,-4761.44927214,0.0002059,3]
[368678959,1751292658152,-151.0,0.0002059,2]
[368678960,1751292658162,-5560.5,0.000206,2]
[368678961,1751292658171,-7694.36762302,0.00020612,2]
[368678962,1751292658181,-460.0,0.0002063,2]
[368678963,1751292658191,-460.0,0.0002063,2]
[368678964,1751292658201,-460.0,0.0002063,2]
[368678965,1751292658210,-1125.71,0.0002063,2]
[368678966,1751292658220,-819.49,0.0002063,2]
[368678967,1751292658229,-711.35,0.0002063,2]
[368678968,1751292658241,-460.0,0.0002063,2]
[368678969,1751292658250,-1987.96,0.0002063,2]
[368678970,1751292658260,-829.15,0.00020631,2]
[368678971,1751292658269,-460.0,0.00020631,2]
[368678972,1751292658280,-460.0,0.00020631,2]
[368678973,1751292658289,-737.549181,0.00020638,4]
[368678974,1751292658299,-22406.1839058,0.00020674,2]
[368678975,1751292658309,-460.0,0.00020675,2]
[368678976,1751292658318,-460.0,0.00020675,2]
[368678977,1751292658327,-2000.0,0.00020681,2]
[368678978,1751292658337,-621.80192814,0.00020689,2]
[368678979,1751292658346,-690.00455686,0.00020695,2]
[368678980,1751292658357,-460.0,0.00020703,2]
[368678981,1751292658366,-460.0,0.00020703,2]
[368678982,1751292658376,-3148.61,0.00020703,2]
[368678983,1751292658386,-833.89,0.00020703,2]
[368678984,1751292658396,-460.0,0.00020703,2]
[368678985,1751292658406,-3121.8,0.00020703,2]
[368678986,1751292658416,-460.0,0.00020703,2]
[368678987,1751292658425,-3574.5,0.00020703,2]
[368678988,1751292658439,-735.98,0.00020703,2]
[368678989,1751292658448,-489.67,0.00020703,2]
[368678990,1751292658458,-499.26,0.00020703,2]
[368678991,1751292658468,-3308.14,0.00020703,2]
[368678992,1751292658478,-460.0,0.00020703,2]
[368678993,1751292658488,-460.0,0.00020703,2]
[368678994,1751292658498,-4178.41,0.00020703,2]
[368678995,1751292658509,-536.59,0.00020703,2]
[368678996,1751292658519,-507.75,0.00020703,2]
[368678997,1751292658529,-2247.91,0.00020703,2]
[368678998,1751292658540,-1889.22,0.00020703,2]
[368678999,1751292658549,-460.0,0.00020703,2]
[368679000,1751292658558,-460.0,0.00020703,2]
[368679001,1751292658567,-2144.16,0.00020704,2]
[368679002,1751292658576,-560.83,0.00020704,2]
[368679003,1751292658586,-494.44,0.00020704,2]
[368679004,1751292658595,-508.1,0.00020704,2]
[368679005,1751292658606,-460.0,0.00020704,2]
[368679006,1751292658624,-684.32,0.00020704,2]
[368679007,1751292658635,-460.0,0.00020704,2]
[368679008,1751292658644,-460.0,0.00020704,2]
[368679009,1751292658654,-151.0,0.00020704,2]
[368679010,1751292658665,-151.0,0.00020704,2]
[368679011,1751292658675,-610.8,0.00020704,2]
[368679012,1751292658685,-512.53,0.00020704,2]
[368679013,1751292658695,-1233.39,0.00020704,2]
[368679014,1751292658705,-478.91,0.00020704,2]
[368679015,1751292658715,-460.0,0.00020704,2]
[368679016,1751292658726,-4803.33,0.00020704,2]
[368679017,1751292658738,-294.69851885,0.00020704,2]
[368679018,1751292658748,-460.0,0.00020704,2]
[368679019,1751292658758,-151.0,0.00020705,2]
[368679020,1751292658768,-237.576382,0.00020705,2]
[368679021,1751292658778,-460.0,0.00020705,2]
[368679022,1751292658788,-1099.82,0.00020705,2]
[368679023,1751292658798,-460.0,0.00020705,2]
[368679024,1751292658808,-213.693847,0.00020705,2]
[368679025,1751292658817,-213.693847,0.00020705,2]
[368679026,1751292658827,-624.33,0.00020705,2]
[368679027,1751292658837,-460.0,0.00020705,2]
[368679028,1751292658847,-470.3,0.00020705,2]
[368679029,1751292658857,-4816.37,0.00020705,2]
[368679030,1751292658868,-1260.89,0.00020705,2]
[368679031,1751292658878,-485.39,0.00020705,2]
[368679032,1751292658889,-460.0,0.00020705,2]
[368679033,1751292658899,-44700.75437326,0.00020723,2]
[368679034,1751292658908,-460.0,0.00020723,2]
[368679035,1751292658918,-1837.64,0.00020723,2]
[368679036,1751292658928,-460.0,0.00020723,2]
[368679037,1751292658938,-867.09,0.00020723,2]
[368679038,1751292658948,-460.0,0.00020723,2]
[368679039,1751292658958,-2598.35,0.00020723,2]
[368679040,1751292658968,-466.47,0.00020723,2]
[368679041,1751292658978,-1001.31,0.00020723,2]
[368679042,1751292658988,-1950.63,0.00020723,2]
[368679043,1751292658998,-460.0,0.00020723,2]
[368679044,1751292659008,-151.0,0.00020723,2]
[368679045,1751292659019,-151.0,0.00020723,2]
[368679046,1751292659029,-460.0,0.00020723,2]
[368679047,1751292659038,-460.0,0.00020723,2]
[368679048,1751292659048,-151.0,0.00020723,2]
[368679049,1751292659058,-254.189724,0.00020723,2]
[368679050,1751292659068,-5311.6,0.00020723,2]
[368679051,1751292659078,-151.0,0.00020723,2]
[368679052,1751292659088,-151.0,0.00020762,2]
[368679053,1751292659097,-4761.44927214,0.00020762,3]
[368679054,1751292659108,-242.24216907,0.00020802,2]
[368679055,1751292659118,-460.0,0.00020804,2]
[368679056,1751292659128,-460.0,0.00020804,2]
[368679057,1751292659138,-460.0,0.00020804,2]
[368679058,1751292659147,-460.0,0.00020804,2]
[368679059,1751292659268,-460.0,0.00020804,2]
[368679060,1751292659279,-460.0,0.00020804,2]
[368679061,1751292659288,-508.48,0.00020804,2]
[368679062,1751292659298,-460.0,0.00020804,2]
[368679063,1751292659308,-574.1,0.00020804,2]
[368679064,1751292659318,-460.0,0.00020804,2]
[368679065,1751292659327,-774.04,0.00020804,2]
[368679066,1751292659337,-527.72,0.00020804,2]
[368679067,1751292659346,-460.0,0.00020804,2]
[368679068,1751292659357,-460.0,0.00020804,2]
[368679069,1751292659366,-527.38,0.00020804,2]
[368679070,1751292659376,-471.26,0.00020804,2]
[368679071,1751292659385,-265.0,0.00020843,2]
[368679072,1751292659395,-151.0,0.0002087,2]
[368679073,1751292659404,-265.0,0.0002087,2]
[368679074,1751292659414,-151.0,0.000209,3]
[368679075,1751292659424,-460.0,0.00020904,2]
[368679076,1751292659437,-460.0,0.00020904,2]
[368679077,1751292659446,-460.0,0.00020904,2]
[368679078,1751292659456,-1125.71,0.00020904,2]
[368679079,1751292659467,-151.0,0.00020904,2]
[368679080,1751292659477,-151.0,0.00020904,2]
[368679081,1751292659487,-819.49,0.00020904,2]
[368679082,1751292659497,-711.35,0.00020904,2]
[368679083,1751292659507,-460.0,0.00020904,2]
[368679084,1751292659518,-1987.96,0.00020904,2]
[368679085,1751292659527,-829.15,0.00020905,2]
[368679086,1751292659536,-460.0,0.00020905,2]
[368679087,1751292659546,-460.0,0.00020905,2]
[368679088,1751292659555,-151.0,0.0002091,2]
[368679089,1751292659565,-500.0,0.0002091,2]
[368679090,1751292659575,-265.0,0.00020932,2]
[368679091,1751292659584,-4761.44927214,0.00020934,4]
[368679092,1751292659594,-460.0,0.00020949,2]
[368679093,1751292659605,-460.0,0.00020977,2]
[368679094,1751292659615,-3148.61,0.00020977,2]
[368679095,1751292659625,-833.89,0.00020977,2]
[368679096,1751292659634,-460.0,0.00020977,2]
[368679097,1751292659644,-3121.8,0.00020977,2]
[368679098,1751292659654,-460.0,0.00020977,2]
[368679099,1751292659664,-3574.5,0.00020977,2]
[368679100,1751292659674,-735.98,0.00020977,2]
[368679101,1751292659684,-489.67,0.00020977,2]
[368679102,1751292659694,-499.26,0.00020977,2]
[368679103,1751292659704,-3308.14,0.00020977,2]
[368679104,1751292659713,-460.0,0.00020977,2]
[368679105,1751292659723,-460.0,0.00020977,2]
[368679106,1751292659733,-4178.41,0.00020977,2]
[368679107,1751292659743,-536.59,0.00020977,2]
[368679108,1751292659752,-507.75,0.00020977,2]
[368679109,1751292659762,-2247.91,0.00020977,2]
[368679110,1751292659772,-1889.22,0.00020977,2]
[368679111,1751292659782,-460.0,0.00020977,2]
[368679112,1751292659791,-460.0,0.00020977,2]
[368679113,1751292659802,-460.0,0.00020978,2]
[368679114,1751292659811,-2144.16,0.00020978,2]
[368679115,1751292659821,-560.83,0.00020978,2]
[368679116,1751292659831,-494.44,0.00020978,2]
[368679117,1751292659840,-508.1,0.00020978,2]
[368679118,1751292659850,-460.0,0.00020978,2]
[368679119,1751292659861,-684.32,0.00020978,2]
[368679120,1751292659871,-460.0,0.00020978,2]
[368679121,1751292659881,-610.8,0.00020978,2]
[368679122,1751292659891,-512.53,0.00020978,2]
[368679123,1751292659901,-1233.39,0.00020978,2]
[368679124,1751292659910,-478.91,0.00020978,2]
[368679125,1751292659920,-460.0,0.00020978,2]
[368679126,1751292659929,-4803.33,0.00020978,2]
[368679127,1751292659939,-460.0,0.00020978,2]
[368679128,1751292659948,-460.0,0.00020979,2]
[368679129,1751292659957,-1099.82,0.00020979,2]
[368679130,1751292659967,-460.0,0.00020979,2]
[368679131,1751292659977,-624.33,0.00020979,2]
[368679132,1751292659986,-460.0,0.00020979,2]
[368679133,1751292659996,-470.3,0.00020979,2]
[368679134,1751292660006,-4816.37,0.00020979,2]
[368679135,1751292660016,-1260.89,0.00020979,2]
[368679136,1751292660025,-485.39,0.00020979,2]
[368679137,1751292660036,-497.82103826,0.00020979,2]
[368679138,1751292660046,-460.0,0.00020997,2]
[368679139,1751292660056,-1837.64,0.00020997,2]
[368679140,1751292660066,-460.0,0.00020997,2]
[368679141,1751292660076,-867.09,0.00020997,2]
[368679142,1751292660086,-460.0,0.00020997,2]
[368679143,1751292660095,-466.47,0.00020997,2]
[368679144,1751292660107,-1001.31,0.00020997,2]
[368679145,1751292660117,-1950.63,0.00020997,2]
[368679146,1751292660127,-460.0,0.00020997,2]
[368679147,1751292660138,-460.0,0.00020997,2]
[368679148,1751292660147,-460.0,0.00020997,2]
[368679149,1751292660158,-5311.6,0.00020997,2]
[368679150,1751292660168,-3000.0,0.00021,2]
[368679151,1751292660178,-500.0,0.00021002,2]
[368679152,1751292660188,-3000.0,0.0002101,2]
[368679153,1751292660198,-151.0,0.0002101,2]
[368679154,1751292660208,-847.999796,0.0002101,2]
[368679155,1751292660218,-3000.0,0.0002102,2]
[368679156,1751292660228,-500.0,0.00021021,2]
[368679157,1751292660238,-3000.0,0.0002103,2]
[368679158,1751292660249,-3000.0,0.0002104,2]
[368679159,1751292660259,-500.0,0.0002104,2]
[368679160,1751292660268,-151.0,0.00021047,2]
[368679161,1751292660279,-3000.0,0.0002105,2]
[368679162,1751292660288,-14058.55830718,0.0002106,2]
[368679163,1751292660298,-3000.0,0.0002106,2]
[368679164,1751292660308,-155.0,0.0002106,2]
[368679165,1751292660318,-2200.0,0.00021062,2]
[368679166,1751292660328,-3000.0,0.0002107,2]
[368679167,1751292660338,-460.0,0.00021078,2]
[368679168,1751292660348,-460.0,0.00021078,2]
[368679169,1751292660359,-460.0,0.00021078,2]
[368679170,1751292660368,-191.23013205,0.00021078,2]
[368679171,1751292660378,-460.0,0.00021078,2]
[368679172,1751292660387,-508.48,0.00021078,2]
[368679173,1751292660397,-460.0,0.00021078,2]
[368679174,1751292660407,-574.1,0.00021078,2]
[368679175,1751292660417,-460.0,0.00021078,2]
[368679176,1751292660427,-774.04,0.00021078,2]
[368679177,1751292660440,-527.72,0.00021078,2]
[368679178,1751292660449,-460.0,0.00021078,2]
[368679179,1751292660459,-460.0,0.00021078,2]
[368679180,1751292660540,-527.38,0.00021078,2]
[368679181,1751292660551,-3000.0,0.0002108,2]
[368679182,1751292660562,-3000.0,0.0002109,2]
[368679183,1751292660573,-151.0,0.0002109,2]
[368679184,1751292660583,-5000.0,0.00021092,2]
[368679185,1751292660594,-25000.0,0.00021092,2]
[368679186,1751292660606,-500.0,0.00021095,15]
[368679187,1751292660616,-257.0,0.00021098,2]
[368679188,1751292660626,-1050.0,0.000211,4]
[368679189,1751292660635,-3000.0,0.000211,2]
[368679190,1751292660646,-265.0,0.00021104,2]
[368679191,1751292660656,-460.0,0.00021104,2]
[368679192,1751292660665,-4761.44927214,0.00021107,4]
[368679193,1751292660674,-3000.0,0.0002111,2]
[368679194,1751292660684,-265.0,0.00021113,2]
[368679195,1751292660694,-3000.0,0.0002112,2]
[368679196,1751292660704,-3000.0,0.0002113,2]
[368679197,1751292660714,-3000.0,0.0002114,2]
[368679198,1751292660724,-3000.0,0.0002115,2]
[368679199,1751292660733,-3000.0,0.0002116,2]
[368679200,1751292660743,-151.0,0.00021161,4]
[368679201,1751292660752,-7694.36762302,0.00021167,2]
[368679202,1751292660762,-3000.0,0.0002117,2]
[368679203,1751292660771,-151.0,0.0002117,2]
[368679204,1751292660780,-151.0,0.0002117,2]
[368679205,1751292660790,-285.26303576,0.00021178,2]
[368679206,1751292660799,-460.0,0.00021178,2]
[368679207,1751292660808,-460.0,0.00021178,2]
[368679208,1751292660818,-1125.71,0.00021178,2]
[368679209,1751292660827,-151.0,0.00021178,2]
[368679210,1751292660837,-819.49,0.00021178,2]
[368679211,1751292660847,-213.693847,0.00021178,2]
[368679212,1751292660860,-213.693847,0.00021178,2]
[368679213,1751292660869,-711.35,0.00021178,2]
[368679214,1751292660879,-460.0,0.00021178,2]
[368679215,1751292660888,-1987.96,0.00021178,2]
[368679216,1751292660897,-829.15,0.00021179,2]
[368679217,1751292660906,-164.91911445,0.00021179,2]
[368679218,1751292660915,-3000.0,0.0002118,2]
[368679219,1751292660925,-3000.0,0.0002119,2]
[368679220,1751292660934,-1288.0,0.000212,2]
[368679221,1751292660943,-3000.0,0.000212,2]
[368679222,1751292660953,-151.0,0.000212,3]
[368679223,1751292660962,-151.0,0.000212,2]
[368679224,1751292660971,-242.39159,0.000212,2]
[368679225,1751292660980,-151.0,0.000212,2]
[368679226,1751292660990,-3000.0,0.0002121,2]
[368679227,1751292660999,-3000.0,0.0002122,2]
[368679228,1751292661009,-396.79,0.00021223,2]
[368679229,1751292661019,-2500.0,0.00021229,2]
[368679230,1751292661029,-3000.0,0.0002123,2]
[368679231,1751292661038,-3000.0,0.0002124,2]
[368679232,1751292661047,-3000.0,0.0002125,2]
[368679233,1751292661056,-151.0,0.0002125,2]
[368679234,1751292661065,-151.0,0.0002125,2]
[368679235,1751292661074,-460.0,0.00021251,2]
[368679236,1751292661096,-3148.61,0.00021251,2]
[368679237,1751292661115,-833.89,0.00021251,2]
[368679238,1751292661134,-460.0,0.00021251,2]
[368679239,1751292661155,-3121.8,0.00021251,2]
[368679240,1751292661176,-460.0,0.00021251,2]
[368679241,1751292661193,-3574.5,0.00021251,2]
[368679242,1751292661211,-735.98,0.00021251,2]
[368679243,1751292661226,-489.67,0.00021251,2]
[368679244,1751292661243,-499.26,0.00021251,2]
[368679245,1751292661263,-3308.14,0.00021251,2]
[368679246,1751292661281,-460.0,0.00021251,2]
[368679247,1751292661293,-460.0,0.00021251,2]
[368679248,1751292661313,-4178.41,0.00021251,2]
[368679249,1751292661326,-536.59,0.00021251,2]
[368679250,1751292661341,-507.75,0.00021251,2]
[368679251,1751292661355,-2247.91,0.00021251,2]
[368679252,1751292661371,-1889.22,0.00021251,2]
[368679253,1751292661385,-460.0,0.00021251,2]
[368679254,1751292661400,-460.0,0.00021251,2]